[Event "Titled Tuesday Blitz July 25 Early 2023"]
[White "JonSnowNW1"]
[Black "laimis61"]
[WhiteElo "2412"]
[BlackElo "2285"]
[Result "0-1"]
[Round "7"]
[TimeControl "180+2"]
[Date "2023.07.25"]
[WhiteClock "0:00:00"]
[BlackClock "0:00:17"]
[Board "173"]

1. c4 {[%clk 0:03:00]}  e6 {[%clk 0:02:58]} 2. e4 {[%clk 0:03:00]}  d5 {[%clk 0:02:57]} 3. cxd5 {[%clk 0:03:00]}  exd5 {[%clk 0:02:56]} 4. exd5 {[%clk 0:03:00]}  Nf6 {[%clk 0:02:56]} 5. Bb5+ {[%clk 0:02:59]}  Nbd7 {[%clk 0:02:44]} 6. Nc3 {[%clk 0:02:54]}  Bd6 {[%clk 0:02:42]} 7. Nf3 {[%clk 0:02:49]}  O-O {[%clk 0:02:41]} 8. O-O {[%clk 0:02:47]}  a6 {[%clk 0:02:40]} 9. Be2 {[%clk 0:02:33]}  Nb6 {[%clk 0:02:36]} 10. h3 {[%clk 0:02:32]}  Nbxd5 {[%clk 0:02:35]} 11. d4 {[%clk 0:02:32]}  Bf5 {[%clk 0:02:23]} 12. Bg5 {[%clk 0:02:28]}  Qd7 {[%clk 0:02:20]} 13. Ne5 {[%clk 0:02:19]}  Qe6 {[%clk 0:02:19]} 14. Bc4 {[%clk 0:02:11]}  Bxe5 {[%clk 0:02:07]} 15. Nxd5 {[%clk 0:02:11]}  Nxd5 {[%clk 0:02:03]} 16. dxe5 {[%clk 0:02:11]}  c6 {[%clk 0:02:01]} 17. Qd4 {[%clk 0:01:56]}  Qg6 {[%clk 0:01:52]} 18. Qh4 {[%clk 0:01:49]}  Be6 {[%clk 0:01:49]} 19. Rac1 {[%clk 0:01:45]}  h6 {[%clk 0:01:48]} 20. Bd2 {[%clk 0:01:42]}  Rad8 {[%clk 0:01:45]} 21. Rfe1 {[%clk 0:01:35]}  Rfe8 {[%clk 0:01:40]} 22. Rcd1 {[%clk 0:01:16]}  Rd7 {[%clk 0:01:36]} 23. Ba5 {[%clk 0:01:03]}  b5 {[%clk 0:01:24]} 24. Bd3 {[%clk 0:01:01]}  Bf5 {[%clk 0:01:23]} 25. Be2 {[%clk 0:00:42]}  Qg5 {[%clk 0:01:12]} 26. Qxg5 {[%clk 0:00:39]}  hxg5 {[%clk 0:01:11]} 27. Bf3 {[%clk 0:00:38]}  Be6 {[%clk 0:01:10]} 28. Rc1 {[%clk 0:00:38]}  Rc8 {[%clk 0:01:06]} 29. Rc5 {[%clk 0:00:32]}  Ne7 {[%clk 0:01:05]} 30. Rec1 {[%clk 0:00:31]}  Bxa2 {[%clk 0:00:57]} 31. Bxc6 {[%clk 0:00:30]}  Nxc6 {[%clk 0:00:54]} 32. Rxc6 {[%clk 0:00:29]}  Rxc6 {[%clk 0:00:53]} 33. Rxc6 {[%clk 0:00:29]}  Rd1+ {[%clk 0:00:47]} 34. Kh2 {[%clk 0:00:29]}  Rb1 {[%clk 0:00:46]} 35. Bc3 {[%clk 0:00:28]}  a5 {[%clk 0:00:42]} 36. Rc5 {[%clk 0:00:13]}  b4 {[%clk 0:00:40]} 37. Bd4 {[%clk 0:00:13]}  a4 {[%clk 0:00:39]} 38. Ra5 {[%clk 0:00:13]}  Bb3 {[%clk 0:00:35]} 39. Rb5 {[%clk 0:00:13]}  a3 {[%clk 0:00:32]} 40. bxa3 {[%clk 0:00:12]}  bxa3 {[%clk 0:00:32]} 41. Ra5 {[%clk 0:00:13]}  a2 {[%clk 0:00:32]} 42. Kg3 {[%clk 0:00:11]}  Rd1 {[%clk 0:00:28]} 43. Bb2 {[%clk 0:00:11]}  Rd2 {[%clk 0:00:27]} 44. Ba1 {[%clk 0:00:10]}  Re2 {[%clk 0:00:23]} 45. Kf3 {[%clk 0:00:09]}  Rc2 {[%clk 0:00:23]} 46. Ke3 {[%clk 0:00:09]}  Rc1 {[%clk 0:00:22]} 47. Bb2 {[%clk 0:00:07]}  Rg1 {[%clk 0:00:22]} 48. g3 {[%clk 0:00:07]}  Rh1 {[%clk 0:00:21]} 49. Bd4 {[%clk 0:00:07]}  Rxh3 {[%clk 0:00:19]} 50. Ra3 {[%clk 0:00:06]}  Be6 {[%clk 0:00:18]} 51. Ra8+ {[%clk 0:00:06]}  Kh7 {[%clk 0:00:17]} 52. Kd2 {[%clk 0:00:03]}  Kg6 {[%clk 0:00:17]} 53. Kc2 {[%clk 0:00:00]}  Kf5 {[%clk 0:00:17]} 0-1


[Site "https://www.chess.com"]

[Event "Titled Tuesday Blitz July 25 Early 2023"]
[White "Barwinska, Ewa"]
[Black "Yashmetov, Mikhail"]
[WhiteFideId "21833761"]
[BlackFideId "24198900"]
[WhiteElo "2279"]
[BlackElo "2410"]
[Result "0-1"]
[Round "7"]
[TimeControl "180+2"]
[Date "2023.07.25"]
[WhiteClock "0:00:16"]
[BlackClock "0:01:05"]
[Board "174"]

1. e4 {[%clk 0:03:00]}  c5 {[%clk 0:03:00]} 2. Nf3 {[%clk 0:03:01]}  Nc6 {[%clk 0:03:00]} 3. d4 {[%clk 0:03:01]}  cxd4 {[%clk 0:03:01]} 4. Nxd4 {[%clk 0:03:01]}  Nf6 {[%clk 0:03:02]} 5. Nc3 {[%clk 0:03:01]}  e5 {[%clk 0:03:02]} 6. Ndb5 {[%clk 0:03:01]}  d6 {[%clk 0:03:02]} 7. Bg5 {[%clk 0:03:01]}  a6 {[%clk 0:03:02]} 8. Na3 {[%clk 0:03:01]}  b5 {[%clk 0:03:02]} 9. Nd5 {[%clk 0:03:02]}  Be7 {[%clk 0:03:02]} 10. Bxf6 {[%clk 0:03:02]}  Bxf6 {[%clk 0:03:03]} 11. c3 {[%clk 0:03:03]}  O-O {[%clk 0:03:03]} 12. Nc2 {[%clk 0:03:02]}  Bg5 {[%clk 0:03:04]} 13. a4 {[%clk 0:03:01]}  bxa4 {[%clk 0:03:04]} 14. Rxa4 {[%clk 0:02:57]}  a5 {[%clk 0:03:00]} 15. Bc4 {[%clk 0:02:55]}  Rb8 {[%clk 0:03:01]} 16. b3 {[%clk 0:02:54]}  Kh8 {[%clk 0:03:01]} 17. O-O {[%clk 0:02:47]}  f5 {[%clk 0:03:01]} 18. exf5 {[%clk 0:02:44]}  Bxf5 {[%clk 0:03:02]} 19. Nce3 {[%clk 0:02:45]}  Bg6 {[%clk 0:03:03]} 20. Qg4 {[%clk 0:02:02]}  e4 {[%clk 0:02:54]} 21. Qe2 {[%clk 0:01:29]}  Ne5 {[%clk 0:02:45]} 22. Rxa5 {[%clk 0:01:25]}  Qxa5 {[%clk 0:02:28]} 23. Ng4 {[%clk 0:01:22]}  Nxc4 {[%clk 0:02:16]} 24. Qxc4 {[%clk 0:01:21]}  Rfc8 {[%clk 0:02:11]} 25. Qd4 {[%clk 0:01:15]}  Qc5 {[%clk 0:02:02]} 26. Qd1 {[%clk 0:01:10]}  Bf7 {[%clk 0:01:56]} 27. c4 {[%clk 0:01:06]}  Bxd5 {[%clk 0:01:53]} 28. cxd5 {[%clk 0:01:07]}  Rf8 {[%clk 0:01:52]} 29. g3 {[%clk 0:00:59]}  e3 {[%clk 0:01:46]} 30. h4 {[%clk 0:00:57]}  exf2+ {[%clk 0:01:44]} 31. Kg2 {[%clk 0:00:55]}  Bf6 {[%clk 0:01:32]} 32. Rxf2 {[%clk 0:00:52]}  Bd4 {[%clk 0:01:31]} 33. Rd2 {[%clk 0:00:47]}  Qxd5+ {[%clk 0:01:25]} 34. Kh3 {[%clk 0:00:48]}  Rb4 {[%clk 0:01:15]} 35. Rd3 {[%clk 0:00:42]}  h5 {[%clk 0:01:14]} 36. Ne3 {[%clk 0:00:19]}  Qe6+ {[%clk 0:01:13]} 37. Kh2 {[%clk 0:00:19]}  Bxe3 {[%clk 0:01:05]} 38. Qxh5+ {[%clk 0:00:16]}  Bh6 {[%clk 0:01:05]} 0-1


[Site "https://www.chess.com"]

[Event "Titled Tuesday Blitz July 25 Early 2023"]
[White "Vemparala, Nikash"]
[Black "Rian, Kapriaga"]
[WhiteFideId "30960967"]
[BlackFideId "7103263"]
[WhiteElo "2259"]
[BlackElo "2393"]
[Result "1-0"]
[Round "7"]
[TimeControl "180+2"]
[Date "2023.07.25"]
[WhiteClock "0:00:08"]
[BlackClock "0:00:00"]
[Board "179"]

1. e4 {[%clk 0:03:00]}  c6 {[%clk 0:02:59]} 2. Nf3 {[%clk 0:03:01]}  d5 {[%clk 0:03:00]} 3. Nc3 {[%clk 0:03:01]}  Bg4 {[%clk 0:02:59]} 4. h3 {[%clk 0:03:01]}  Bxf3 {[%clk 0:02:59]} 5. Qxf3 {[%clk 0:03:02]}  Nf6 {[%clk 0:02:59]} 6. exd5 {[%clk 0:02:57]}  cxd5 {[%clk 0:02:57]} 7. d4 {[%clk 0:02:54]}  Nc6 {[%clk 0:02:56]} 8. Bb5 {[%clk 0:02:53]}  e6 {[%clk 0:02:56]} 9. O-O {[%clk 0:02:51]}  Be7 {[%clk 0:02:55]} 10. Bf4 {[%clk 0:02:48]}  O-O {[%clk 0:02:54]} 11. Bxc6 {[%clk 0:02:45]}  bxc6 {[%clk 0:02:52]} 12. Ne2 {[%clk 0:02:40]}  c5 {[%clk 0:02:50]} 13. c3 {[%clk 0:02:33]}  Qb6 {[%clk 0:02:48]} 14. b3 {[%clk 0:02:26]}  a5 {[%clk 0:02:42]} 15. Be5 {[%clk 0:02:21]}  Rfc8 {[%clk 0:02:38]} 16. dxc5 {[%clk 0:02:17]}  Qxc5 {[%clk 0:02:31]} 17. Bd4 {[%clk 0:02:18]}  Qc7 {[%clk 0:02:23]} 18. Ng3 {[%clk 0:02:17]}  a4 {[%clk 0:02:20]} 19. Rae1 {[%clk 0:01:58]}  axb3 {[%clk 0:02:17]} 20. axb3 {[%clk 0:01:58]}  Ra3 {[%clk 0:02:06]} 21. Nh5 {[%clk 0:01:25]}  Nxh5 {[%clk 0:02:01]} 22. Qxh5 {[%clk 0:01:25]}  Rxb3 {[%clk 0:01:58]} 23. Qg4 {[%clk 0:01:23]}  Bf8 {[%clk 0:01:54]} 24. Re3 {[%clk 0:01:22]}  g6 {[%clk 0:01:45]} 25. Be5 {[%clk 0:00:53]}  Qc4 {[%clk 0:01:31]} 26. Qg5 {[%clk 0:00:41]}  Bg7 {[%clk 0:01:19]} 27. Bxg7 {[%clk 0:00:40]}  Kxg7 {[%clk 0:01:14]} 28. Rf3 {[%clk 0:00:40]}  Qc7 {[%clk 0:01:05]} 29. Qf6+ {[%clk 0:00:24]}  Kg8 {[%clk 0:01:00]} 30. h4 {[%clk 0:00:24]}  Rxc3 {[%clk 0:00:48]} 31. Rf4 {[%clk 0:00:19]}  Rc1 {[%clk 0:00:45]} 32. Rxc1 {[%clk 0:00:13]}  Qxc1+ {[%clk 0:00:44]} 33. Kh2 {[%clk 0:00:14]}  Qc7 {[%clk 0:00:41]} 34. h5 {[%clk 0:00:13]}  gxh5 {[%clk 0:00:37]} 35. g3 {[%clk 0:00:10]}  Kf8 {[%clk 0:00:21]} 36. Qxe6 {[%clk 0:00:10]}  Re8 {[%clk 0:00:16]} 37. Qxd5 {[%clk 0:00:10]}  Qe7 {[%clk 0:00:13]} 38. Qxh5 {[%clk 0:00:10]}  Kg8 {[%clk 0:00:10]} 39. Rg4+ {[%clk 0:00:09]}  Kh8 {[%clk 0:00:09]} 40. Qh6 {[%clk 0:00:09]}  f6 {[%clk 0:00:08]} 41. Rh4 {[%clk 0:00:08]}  Rf8 {[%clk 0:00:06]} 42. Rf4 {[%clk 0:00:07]}  Qg7 {[%clk 0:00:06]} 43. Qxg7+ {[%clk 0:00:07]}  Kxg7 {[%clk 0:00:06]} 44. Kg2 {[%clk 0:00:08]}  Re8 {[%clk 0:00:05]} 45. Kf3 {[%clk 0:00:09]}  Re5 {[%clk 0:00:05]} 46. Ra4 {[%clk 0:00:10]}  Kg6 {[%clk 0:00:05]} 47. g4 {[%clk 0:00:09]}  Rg5 {[%clk 0:00:05]} 48. Ra7 {[%clk 0:00:09]}  Rb5 {[%clk 0:00:05]} 49. Ra8 {[%clk 0:00:09]}  Rb4 {[%clk 0:00:05]} 50. Rg8+ {[%clk 0:00:08]}  Kf7 {[%clk 0:00:05]} 51. Ra8 {[%clk 0:00:09]}  Kg7 {[%clk 0:00:05]} 52. Kg3 {[%clk 0:00:09]}  Kg6 {[%clk 0:00:05]} 53. f3 {[%clk 0:00:09]}  h5 {[%clk 0:00:04]} 54. Rg8+ {[%clk 0:00:08]}  Kf7 {[%clk 0:00:03]} 55. Rh8 {[%clk 0:00:07]}  hxg4 {[%clk 0:00:03]} 56. fxg4 {[%clk 0:00:08]}  Kg7 {[%clk 0:00:04]} 57. Ra8 {[%clk 0:00:07]}  Kh6 {[%clk 0:00:03]} 58. Ra6 {[%clk 0:00:07]}  Kg7 {[%clk 0:00:02]} 59. Ra5 {[%clk 0:00:07]}  Kg6 {[%clk 0:00:02]} 60. Rc5 {[%clk 0:00:07]}  Ra4 {[%clk 0:00:02]} 61. Rb5 {[%clk 0:00:08]}  Rc4 {[%clk 0:00:02]} 62. Kh4 {[%clk 0:00:08]}  Ra4 {[%clk 0:00:02]} 63. Rc5 {[%clk 0:00:08]}  Rb4 {[%clk 0:00:02]} 64. Ra5 {[%clk 0:00:09]}  Rd4 {[%clk 0:00:02]} 65. Ra8 {[%clk 0:00:09]}  Rb4 {[%clk 0:00:02]} 66. Ra6 {[%clk 0:00:10]}  Kf7 {[%clk 0:00:03]} 67. Kh5 {[%clk 0:00:09]}  Rb5+ {[%clk 0:00:01]} 68. Kh6 {[%clk 0:00:09]}  Rg5 {[%clk 0:00:01]} 69. Ra7+ {[%clk 0:00:08]}  Ke6 {[%clk 0:00:00]} 70. Rg7 {[%clk 0:00:08]} 1-0


[Site "https://www.chess.com"]

[Event "Titled Tuesday Blitz July 25 Early 2023"]
[White "djjohnnywoo"]
[Black "Melikhov, Evgeny V."]
[BlackFideId "4122046"]
[WhiteElo "2148"]
[BlackElo "2373"]
[Result "0-1"]
[Round "7"]
[TimeControl "180+2"]
[Date "2023.07.25"]
[WhiteClock "0:00:00"]
[BlackClock "0:00:12"]
[Board "182"]

1. g3 {[%clk 0:03:00]}  f5 {[%clk 0:02:57]} 2. Bg2 {[%clk 0:03:00]}  Nf6 {[%clk 0:02:57]} 3. d3 {[%clk 0:03:00]}  d6 {[%clk 0:02:56]} 4. e4 {[%clk 0:02:58]}  Nc6 {[%clk 0:02:50]} 5. Nc3 {[%clk 0:02:57]}  e5 {[%clk 0:02:37]} 6. Nf3 {[%clk 0:02:49]}  Be7 {[%clk 0:02:32]} 7. Bg5 {[%clk 0:02:40]}  O-O {[%clk 0:02:31]} 8. Qd2 {[%clk 0:02:34]}  h6 {[%clk 0:02:19]} 9. Bxf6 {[%clk 0:02:18]}  Bxf6 {[%clk 0:02:19]} 10. O-O-O {[%clk 0:02:11]}  Be6 {[%clk 0:02:17]} 11. h4 {[%clk 0:01:46]}  b5 {[%clk 0:02:11]} 12. Nd5 {[%clk 0:01:23]}  Bxd5 {[%clk 0:02:09]} 13. exd5 {[%clk 0:01:23]}  Ne7 {[%clk 0:02:08]} 14. Ng5 {[%clk 0:01:16]}  Qd7 {[%clk 0:01:54]} 15. Ne6 {[%clk 0:01:13]}  Rfb8 {[%clk 0:01:53]} 16. Qa5 {[%clk 0:00:57]}  Rb6 {[%clk 0:01:50]} 17. Kb1 {[%clk 0:00:53]}  a6 {[%clk 0:01:41]} 18. d4 {[%clk 0:00:39]}  e4 {[%clk 0:01:36]} 19. Nf4 {[%clk 0:00:36]}  Rab8 {[%clk 0:01:24]} 20. h5 {[%clk 0:00:35]}  b4 {[%clk 0:01:23]} 21. Bh3 {[%clk 0:00:34]}  Rb5 {[%clk 0:01:09]} 22. Qxa6 {[%clk 0:00:33]}  R5b6 {[%clk 0:00:56]} 23. Qa5 {[%clk 0:00:28]}  Qc8 {[%clk 0:00:53]} 24. Ne6 {[%clk 0:00:25]}  Ra8 {[%clk 0:00:49]} 25. Qxa8 {[%clk 0:00:15]}  Qxa8 {[%clk 0:00:49]} 26. Nxc7 {[%clk 0:00:15]}  Qb7 {[%clk 0:00:43]} 27. Ne8 {[%clk 0:00:14]}  Qxd5 {[%clk 0:00:38]} 28. Nxf6+ {[%clk 0:00:13]}  gxf6 {[%clk 0:00:38]} 29. g4 {[%clk 0:00:12]}  f4 {[%clk 0:00:37]} 30. g5 {[%clk 0:00:12]}  fxg5 {[%clk 0:00:37]} 31. Bd7 {[%clk 0:00:10]}  Rb7 {[%clk 0:00:30]} 32. Ba4 {[%clk 0:00:08]}  Kg7 {[%clk 0:00:28]} 33. Bb3 {[%clk 0:00:09]}  Qf5 {[%clk 0:00:28]} 34. Rde1 {[%clk 0:00:09]}  d5 {[%clk 0:00:28]} 35. f3 {[%clk 0:00:09]}  e3 {[%clk 0:00:27]} 36. Re2 {[%clk 0:00:09]}  Nc8 {[%clk 0:00:15]} 37. Rd1 {[%clk 0:00:10]}  Nd6 {[%clk 0:00:15]} 38. Kc1 {[%clk 0:00:09]}  Nc4 {[%clk 0:00:15]} 39. Bxc4 {[%clk 0:00:09]}  dxc4 {[%clk 0:00:15]} 40. d5 {[%clk 0:00:09]}  b3 {[%clk 0:00:15]} 41. cxb3 {[%clk 0:00:07]}  cxb3 {[%clk 0:00:15]} 42. axb3 {[%clk 0:00:00]}  Rc7+ {[%clk 0:00:12]} 0-1


[Site "https://www.chess.com"]

[Event "Titled Tuesday Blitz July 25 Early 2023"]
[White "Womacka, Mathias"]
[Black "EdmundPlayer"]
[WhiteFideId "4611390"]
[WhiteElo "2494"]
[BlackElo "2300"]
[Result "1-0"]
[Round "7"]
[TimeControl "180+2"]
[Date "2023.07.25"]
[WhiteClock "0:01:50"]
[BlackClock "0:00:03"]
[Board "184"]

1. e4 {[%clk 0:03:00]}  e5 {[%clk 0:02:59]} 2. Nf3 {[%clk 0:03:00]}  Nc6 {[%clk 0:03:00]} 3. Bb5 {[%clk 0:03:00]}  a6 {[%clk 0:03:00]} 4. Bxc6 {[%clk 0:03:00]}  dxc6 {[%clk 0:03:00]} 5. O-O {[%clk 0:03:01]}  Bg4 {[%clk 0:02:59]} 6. h3 {[%clk 0:03:00]}  h5 {[%clk 0:02:57]} 7. d3 {[%clk 0:03:00]}  Qf6 {[%clk 0:02:25]} 8. Nbd2 {[%clk 0:03:00]}  Ne7 {[%clk 0:02:06]} 9. Re1 {[%clk 0:02:59]}  Be6 {[%clk 0:01:18]} 10. Nc4 {[%clk 0:02:37]}  Bxc4 {[%clk 0:01:15]} 11. dxc4 {[%clk 0:02:37]}  Rd8 {[%clk 0:01:13]} 12. Qe2 {[%clk 0:02:37]}  Ng6 {[%clk 0:01:10]} 13. Bg5 {[%clk 0:02:36]}  Nf4 {[%clk 0:01:05]} 14. Qe3 {[%clk 0:02:29]}  Qg6 {[%clk 0:00:54]} 15. Bxf4 {[%clk 0:02:26]}  exf4 {[%clk 0:00:53]} 16. Qxf4 {[%clk 0:02:27]}  Bd6 {[%clk 0:00:50]} 17. e5 {[%clk 0:02:11]}  Bc5 {[%clk 0:00:45]} 18. e6 {[%clk 0:02:07]}  f6 {[%clk 0:00:09]} 19. Qxc7 {[%clk 0:01:54]}  Bd6 {[%clk 0:00:05]} 20. Qxb7 {[%clk 0:01:51]}  Qxc2 {[%clk 0:00:03]} 21. Qf7# {[%clk 0:01:50]} 1-0


[Site "https://www.chess.com"]

[Event "Titled Tuesday Blitz July 25 Early 2023"]
[White "Tikhonov, Viacheslav"]
[Black "UgarteCesar"]
[WhiteFideId "44196407"]
[WhiteElo "2470"]
[BlackElo "2290"]
[Result "1-0"]
[Round "7"]
[TimeControl "180+2"]
[Date "2023.07.25"]
[WhiteClock "0:00:40"]
[BlackClock "0:01:21"]
[Board "185"]

1. e4 {[%clk 0:03:00]}  c5 {[%clk 0:03:00]} 2. Nf3 {[%clk 0:03:00]}  Nc6 {[%clk 0:03:00]} 3. d4 {[%clk 0:02:59]}  cxd4 {[%clk 0:03:01]} 4. Nxd4 {[%clk 0:02:59]}  Qb6 {[%clk 0:03:01]} 5. Nb3 {[%clk 0:02:58]}  Nf6 {[%clk 0:03:01]} 6. Nc3 {[%clk 0:02:59]}  e6 {[%clk 0:03:02]} 7. Be3 {[%clk 0:02:59]}  Qc7 {[%clk 0:03:02]} 8. Be2 {[%clk 0:03:00]}  a6 {[%clk 0:03:03]} 9. Qd2 {[%clk 0:02:57]}  b5 {[%clk 0:03:03]} 10. a3 {[%clk 0:02:55]}  b4 {[%clk 0:03:03]} 11. axb4 {[%clk 0:02:52]}  Bxb4 {[%clk 0:03:04]} 12. f3 {[%clk 0:02:41]}  O-O {[%clk 0:03:04]} 13. O-O {[%clk 0:02:36]}  d5 {[%clk 0:02:58]} 14. exd5 {[%clk 0:02:07]}  Bxc3 {[%clk 0:02:57]} 15. Qxc3 {[%clk 0:01:53]}  Nxd5 {[%clk 0:02:56]} 16. Qc5 {[%clk 0:01:54]}  Nxe3 {[%clk 0:02:55]} 17. Qxe3 {[%clk 0:01:55]}  a5 {[%clk 0:02:44]} 18. c3 {[%clk 0:01:41]}  Ba6 {[%clk 0:02:42]} 19. Bxa6 {[%clk 0:01:32]}  Rxa6 {[%clk 0:02:43]} 20. Nc5 {[%clk 0:01:32]}  Raa8 {[%clk 0:02:40]} 21. Qf2 {[%clk 0:01:14]}  Rfb8 {[%clk 0:02:33]} 22. Rfd1 {[%clk 0:01:12]}  Qb6 {[%clk 0:02:17]} 23. Rd2 {[%clk 0:01:11]}  g6 {[%clk 0:02:10]} 24. Rad1 {[%clk 0:01:10]}  Ne7 {[%clk 0:01:52]} 25. Rd6 {[%clk 0:00:41]}  Qxb2 {[%clk 0:01:42]} 26. Rd8+ {[%clk 0:00:40]}  Kg7 {[%clk 0:01:21]} 27. Qxb2 {[%clk 0:00:40]} 1-0


[Site "https://www.chess.com"]

[Event "Titled Tuesday Blitz July 25 Early 2023"]
[White "Akylbek2021"]
[Black "Atanasov, Radislav"]
[BlackFideId "2901471"]
[WhiteElo "2445"]
[BlackElo "2249"]
[Result "1-0"]
[Round "7"]
[TimeControl "180+2"]
[Date "2023.07.25"]
[WhiteClock "0:00:02"]
[BlackClock "0:00:00"]
[Board "186"]

1. e4 {[%clk 0:03:00]}  e5 {[%clk 0:02:59]} 2. Nf3 {[%clk 0:03:00]}  Nc6 {[%clk 0:02:59]} 3. Bb5 {[%clk 0:03:00]}  a6 {[%clk 0:02:58]} 4. Bxc6 {[%clk 0:03:00]}  dxc6 {[%clk 0:02:58]} 5. d4 {[%clk 0:03:00]}  exd4 {[%clk 0:02:56]} 6. Qxd4 {[%clk 0:03:01]}  Qxd4 {[%clk 0:02:56]} 7. Nxd4 {[%clk 0:03:02]}  Bd7 {[%clk 0:02:56]} 8. Nc3 {[%clk 0:03:00]}  O-O-O {[%clk 0:02:57]} 9. Be3 {[%clk 0:03:00]}  Re8 {[%clk 0:02:55]} 10. O-O-O {[%clk 0:03:01]}  Ne7 {[%clk 0:02:51]} 11. f3 {[%clk 0:02:58]}  f5 {[%clk 0:02:50]} 12. exf5 {[%clk 0:02:58]}  Nxf5 {[%clk 0:02:50]} 13. Nxf5 {[%clk 0:02:57]}  Bxf5 {[%clk 0:02:50]} 14. Bd4 {[%clk 0:02:54]}  c5 {[%clk 0:02:44]} 15. Bf2 {[%clk 0:02:54]}  Bd6 {[%clk 0:02:30]} 16. Nd5 {[%clk 0:02:49]}  Re2 {[%clk 0:02:11]} 17. Rd2 {[%clk 0:02:14]}  Rxd2 {[%clk 0:02:09]} 18. Kxd2 {[%clk 0:02:14]}  Rd8 {[%clk 0:02:08]} 19. Kc1 {[%clk 0:01:41]}  c6 {[%clk 0:01:36]} 20. Ne3 {[%clk 0:01:27]}  Bg6 {[%clk 0:01:28]} 21. h4 {[%clk 0:01:06]}  h5 {[%clk 0:01:24]} 22. Rd1 {[%clk 0:01:02]}  Kc7 {[%clk 0:01:17]} 23. g3 {[%clk 0:00:54]}  Re8 {[%clk 0:01:15]} 24. Nc4 {[%clk 0:00:42]}  Re2 {[%clk 0:00:31]} 25. Rd2 {[%clk 0:00:42]}  Rxd2 {[%clk 0:00:21]} 26. Kxd2 {[%clk 0:00:43]}  b5 {[%clk 0:00:19]} 27. Ne3 {[%clk 0:00:27]}  Be5 {[%clk 0:00:15]} 28. b3 {[%clk 0:00:23]}  a5 {[%clk 0:00:14]} 29. f4 {[%clk 0:00:18]}  Bd4 {[%clk 0:00:11]} 30. Nd1 {[%clk 0:00:09]}  Kd6 {[%clk 0:00:07]} 31. Be3 {[%clk 0:00:05]}  Kd5 {[%clk 0:00:05]} 32. c3 {[%clk 0:00:04]}  Bxe3+ {[%clk 0:00:03]} 33. Kxe3 {[%clk 0:00:04]}  c4 {[%clk 0:00:00]} 34. Nb2 {[%clk 0:00:02]} 1-0


[Site "https://www.chess.com"]

[Event "Titled Tuesday Blitz July 25 Early 2023"]
[White "FREDERICKtheMATE"]
[Black "Kohler, Aran"]
[BlackFideId "1002856"]
[WhiteElo "2378"]
[BlackElo "2247"]
[Result "0-1"]
[Round "7"]
[TimeControl "180+2"]
[Date "2023.07.25"]
[WhiteClock "0:01:34"]
[BlackClock "0:01:51"]
[Board "188"]

1. Nf3 {[%clk 0:03:00]}  h6 {[%clk 0:02:58]} 2. g3 {[%clk 0:03:01]}  g5 {[%clk 0:02:57]} 3. Bg2 {[%clk 0:03:02]}  Bg7 {[%clk 0:02:57]} 4. O-O {[%clk 0:03:03]}  d5 {[%clk 0:02:56]} 5. d4 {[%clk 0:03:01]}  Nc6 {[%clk 0:02:54]} 6. b3 {[%clk 0:02:58]}  g4 {[%clk 0:02:54]} 7. Ne5 {[%clk 0:02:56]}  Nxe5 {[%clk 0:02:53]} 8. dxe5 {[%clk 0:02:55]}  Bxe5 {[%clk 0:02:54]} 9. c3 {[%clk 0:02:56]}  c6 {[%clk 0:02:53]} 10. Qc2 {[%clk 0:02:55]}  h5 {[%clk 0:02:49]} 11. e4 {[%clk 0:02:54]}  h4 {[%clk 0:02:46]} 12. exd5 {[%clk 0:02:50]}  cxd5 {[%clk 0:02:46]} 13. Rd1 {[%clk 0:02:49]}  hxg3 {[%clk 0:02:38]} 14. hxg3 {[%clk 0:02:47]}  Nf6 {[%clk 0:02:28]} 15. Bg5 {[%clk 0:02:47]}  Be6 {[%clk 0:02:27]} 16. Qe2 {[%clk 0:02:42]}  Qc7 {[%clk 0:02:24]} 17. Bxf6 {[%clk 0:02:41]}  Bxf6 {[%clk 0:02:22]} 18. Bxd5 {[%clk 0:02:40]}  Bxd5 {[%clk 0:02:17]} 19. Rxd5 {[%clk 0:02:40]}  Qc6 {[%clk 0:02:17]} 20. Qe4 {[%clk 0:02:21]}  e6 {[%clk 0:02:14]} 21. c4 {[%clk 0:01:53]}  Bxa1 {[%clk 0:02:10]} 22. Nd2 {[%clk 0:01:51]}  Kf8 {[%clk 0:02:03]} 23. Rd3 {[%clk 0:01:37]}  Qxe4 {[%clk 0:02:01]} 24. Nxe4 {[%clk 0:01:38]}  Ke7 {[%clk 0:01:57]} 25. Nc5 {[%clk 0:01:38]}  Rad8 {[%clk 0:01:55]} 26. Rxd8 {[%clk 0:01:37]}  Rxd8 {[%clk 0:01:54]} 27. Nxb7 {[%clk 0:01:38]}  Rd2 {[%clk 0:01:54]} 28. Nc5 {[%clk 0:01:36]}  Bd4 {[%clk 0:01:52]} 29. Ne4 {[%clk 0:01:34]}  Rxa2 {[%clk 0:01:51]} 0-1


[Site "https://www.chess.com"]